[Event "*** SCC Grand Prix: Titled Tuesday Blitz"]
[Site "Chess.com"]
[Date "2020.07.14"]
[Round "3"]
[White "Chess_Boxer123"]
[Black "Sam_ChessMood"]
[Result "1-0"]
[WhiteElo "2582"]
[BlackElo "2804"]
[TimeControl "180+1"]
[EndTime "10:30:03 PDT"]
[Termination "Chess_Boxer123 won by checkmate"]

1. d4 {[%clk 0:03:00.9]} 1... d5 {[%clk 0:02:59.3]} 2. Bf4 {[%clk 0:03:00.5]}
2... Nf6 {[%clk 0:02:58.7]} 3. e3 {[%clk 0:03:00.9]} 3... c5 {[%clk 0:02:59]} 4.
Nf3 {[%clk 0:03:01.2]} 4... Nc6 {[%clk 0:02:58.2]} 5. Nbd2 {[%clk 0:03:01.3]}
5... Nh5 {[%clk 0:02:58.2]} 6. Bg5 {[%clk 0:02:56.3]} 6... h6 {[%clk 0:02:33.3]}
7. Bh4 {[%clk 0:02:54.4]} 7... g5 {[%clk 0:02:33.4]} 8. Bg3 {[%clk 0:02:54.5]}
8... Nxg3 {[%clk 0:02:29]} 9. hxg3 {[%clk 0:02:55.4]} 9... Bg7 {[%clk
0:02:29.3]} 10. c3 {[%clk 0:02:55.2]} 10... Qb6 {[%clk 0:02:25.7]} 11. Rb1
{[%clk 0:02:54.8]} 11... Bf5 {[%clk 0:02:21.5]} 12. dxc5 {[%clk 0:02:49.9]}
12... Qxc5 {[%clk 0:02:22.4]} 13. Nb3 {[%clk 0:02:48.9]} 13... Qd6 {[%clk
0:02:22.3]} 14. Bd3 {[%clk 0:02:48.1]} 14... Bd7 {[%clk 0:02:21.4]} 15. Qe2
{[%clk 0:02:46.2]} 15... O-O-O {[%clk 0:02:17.6]} 16. Nbd4 {[%clk 0:02:30.3]}
16... Kb8 {[%clk 0:02:15.8]} 17. O-O {[%clk 0:02:17.7]} 17... e6 {[%clk
0:01:45.4]} 18. Bb5 {[%clk 0:01:46.5]} 18... g4 {[%clk 0:01:36.6]} 19. Nh4
{[%clk 0:01:29.4]} 19... h5 {[%clk 0:01:36.8]} 20. Bxc6 {[%clk 0:01:18.7]} 20...
Bxc6 {[%clk 0:01:35.4]} 21. Rfd1 {[%clk 0:01:17.1]} 21... Ka8 {[%clk 0:01:32.5]}
22. e4 {[%clk 0:01:09.8]} 22... dxe4 {[%clk 0:01:26.4]} 23. Ndf5 {[%clk
0:00:52.7]} 23... Qe5 {[%clk 0:01:25.7]} 24. Ne7 {[%clk 0:00:37.8]} 24... Qc7
{[%clk 0:00:50.9]} 25. Nxc6 {[%clk 0:00:36.5]} 25... Qxc6 {[%clk 0:00:51.4]} 26.
Rxd8+ {[%clk 0:00:34.9]} 26... Rxd8 {[%clk 0:00:50.6]} 27. Rd1 {[%clk
0:00:35.8]} 27... Rxd1+ {[%clk 0:00:44.5]} 28. Qxd1 {[%clk 0:00:36.7]} 28... Bf6
{[%clk 0:00:44.7]} 29. Qd2 {[%clk 0:00:17.9]} 29... Qd5 {[%clk 0:00:12.1]} 30.
Qxd5 {[%clk 0:00:17]} 30... exd5 {[%clk 0:00:12.1]} 31. Nf5 {[%clk 0:00:17.9]}
31... b5 {[%clk 0:00:09]} 32. Nd6 {[%clk 0:00:15.9]} 32... b4 {[%clk 0:00:05.9]}
33. cxb4 {[%clk 0:00:10.8]} 33... Bxb2 {[%clk 0:00:06.8]} 34. Nxf7 {[%clk
0:00:10.3]} 34... d4 {[%clk 0:00:07]} 35. Kf1 {[%clk 0:00:09.7]} 35... d3 {[%clk
0:00:07.5]} 36. Ke1 {[%clk 0:00:09.8]} 36... Bc3+ {[%clk 0:00:07.4]} 37. Kd1
{[%clk 0:00:09.9]} 37... Bxb4 {[%clk 0:00:08]} 38. Ng5 {[%clk 0:00:09.2]} 38...
Kb7 {[%clk 0:00:07]} 39. Nxe4 {[%clk 0:00:09.3]} 39... Kc6 {[%clk 0:00:07.4]}
40. Nf6 {[%clk 0:00:08.6]} 40... Kc5 {[%clk 0:00:04.4]} 41. Nxh5 {[%clk
0:00:08.2]} 41... Kc4 {[%clk 0:00:04.9]} 42. Nf6 {[%clk 0:00:08.4]} 42... Kc3
{[%clk 0:00:05.4]} 43. Nxg4 {[%clk 0:00:08.7]} 43... Kb2 {[%clk 0:00:05.7]} 44.
Ne5 {[%clk 0:00:06.3]} 44... Kxa2 {[%clk 0:00:05.6]} 45. Nxd3 {[%clk 0:00:06]}
45... Bf8 {[%clk 0:00:05.7]} 46. Kc2 {[%clk 0:00:06.1]} 46... a5 {[%clk
0:00:06.2]} 47. f4 {[%clk 0:00:06.1]} 47... a4 {[%clk 0:00:06.6]} 48. g4 {[%clk
0:00:05.7]} 48... a3 {[%clk 0:00:06.9]} 49. Nc1+ {[%clk 0:00:05.6]} 49... Ka1
{[%clk 0:00:07.1]} 50. g5 {[%clk 0:00:06.1]} 50... Bd6 {[%clk 0:00:06.1]} 51. g3
{[%clk 0:00:06.6]} 51... Bc5 {[%clk 0:00:05.3]} 52. Nb3+ {[%clk 0:00:05.4]}
52... Ka2 {[%clk 0:00:05.1]} 53. Nxc5 {[%clk 0:00:06.3]} 53... Ka1 {[%clk
0:00:05.7]} 54. Nb3+ {[%clk 0:00:06.5]} 54... Ka2 {[%clk 0:00:04.9]} 55. Nc1+
{[%clk 0:00:06.9]} 55... Ka1 {[%clk 0:00:05.5]} 56. g4 {[%clk 0:00:07.5]} 56...
a2 {[%clk 0:00:06.4]} 57. Nb3# {[%clk 0:00:08.4]} 1-0

[Event "*** SCC Grand Prix: Titled Tuesday Blitz"]
[Site "Chess.com"]
[Date "2020.07.14"]
[Round "3"]
[White "plumalka"]
[Black "TheCount"]
[Result "0-1"]
[WhiteElo "2424"]
[BlackElo "2713"]
[TimeControl "180+1"]
[EndTime "10:30:05 PDT"]
[Termination "TheCount won by resignation"]

1. e4 {[%clk 0:03:00.9]} 1... c5 {[%clk 0:02:58.7]} 2. Nf3 {[%clk 0:03:00.6]}
2... Nc6 {[%clk 0:02:58.8]} 3. d4 {[%clk 0:03:00.9]} 3... cxd4 {[%clk
0:02:59.7]} 4. Nxd4 {[%clk 0:03:01.6]} 4... Qb6 {[%clk 0:03:00.4]} 5. Nb3 {[%clk
0:03:00.7]} 5... Nf6 {[%clk 0:03:00.8]} 6. Bd3 {[%clk 0:03:00.5]} 6... d5 {[%clk
0:02:59.5]} 7. exd5 {[%clk 0:02:57.4]} 7... Nxd5 {[%clk 0:03:00.4]} 8. O-O
{[%clk 0:02:56.4]} 8... e6 {[%clk 0:02:57.9]} 9. c4 {[%clk 0:02:50.4]} 9... Nf6
{[%clk 0:02:53.4]} 10. Nc3 {[%clk 0:02:47.6]} 10... Be7 {[%clk 0:02:44.7]} 11.
Bg5 {[%clk 0:02:47]} 11... h6 {[%clk 0:02:43.3]} 12. Bh4 {[%clk 0:02:44.7]}
12... O-O {[%clk 0:02:42.2]} 13. Kh1 {[%clk 0:02:37.7]} 13... Rd8 {[%clk
0:02:41.6]} 14. Qe2 {[%clk 0:02:33.5]} 14... Nd4 {[%clk 0:02:40.9]} 15. Nxd4
{[%clk 0:02:33.3]} 15... Qxd4 {[%clk 0:02:41.8]} 16. Bxf6 {[%clk 0:02:28.3]}
16... Qxf6 {[%clk 0:02:36.4]} 17. Rad1 {[%clk 0:02:20.1]} 17... Bd7 {[%clk
0:02:32.7]} 18. Ne4 {[%clk 0:02:07.8]} 18... Qe5 {[%clk 0:02:14]} 19. f4 {[%clk
0:02:07]} 19... Qa5 {[%clk 0:02:10.8]} 20. a3 {[%clk 0:02:03.4]} 20... Bc6
{[%clk 0:02:10.5]} 21. Ng3 {[%clk 0:02:01.2]} 21... Bf6 {[%clk 0:02:04.8]} 22.
f5 {[%clk 0:01:56.5]} 22... exf5 {[%clk 0:01:59.5]} 23. Nxf5 {[%clk 0:01:55.6]}
23... Qe5 {[%clk 0:01:37.7]} 24. Qg4 {[%clk 0:01:52.6]} 24... Kf8 {[%clk
0:01:31.7]} 25. b4 {[%clk 0:01:40.3]} 25... a6 {[%clk 0:01:20.7]} 26. Qh3 {[%clk
0:01:14.3]} 26... Bg5 {[%clk 0:01:06.3]} 27. c5 {[%clk 0:01:10.1]} 27... Ba4
{[%clk 0:00:52.2]} 28. Rde1 {[%clk 0:01:05.8]} 28... Qc3 {[%clk 0:00:52]} 29.
Nd6 {[%clk 0:01:04.7]} 29... Bf6 {[%clk 0:00:45]} 30. Qh5 {[%clk 0:00:57.8]}
30... Rxd6 {[%clk 0:00:41.1]} 31. cxd6 {[%clk 0:00:48.4]} 31... Qxd3 {[%clk
0:00:41.1]} 32. h3 {[%clk 0:00:32.7]} 32... Qxd6 {[%clk 0:00:38.1]} 33. Qf3
{[%clk 0:00:26.8]} 33... Bc6 {[%clk 0:00:37.3]} 34. Qb3 {[%clk 0:00:25.9]} 34...
Qd5 {[%clk 0:00:31.2]} 35. Qc2 {[%clk 0:00:23]} 35... Qh5 {[%clk 0:00:23.1]} 36.
Re3 {[%clk 0:00:21.6]} 36... Kg8 {[%clk 0:00:19.3]} 37. Rf5 {[%clk 0:00:17.9]}
37... Qh4 {[%clk 0:00:12.7]} 38. Rf1 {[%clk 0:00:10.7]} 38... Rd8 {[%clk
0:00:11.8]} 39. Qe2 {[%clk 0:00:10.5]} 39... Bg5 {[%clk 0:00:08.7]} 40. Re5
{[%clk 0:00:08]} 40... Qxh3+ {[%clk 0:00:07.5]} 41. Kg1 {[%clk 0:00:07]} 41...
Qh4 {[%clk 0:00:07]} 42. Qe1 {[%clk 0:00:03.4]} 42... Qd4+ {[%clk 0:00:06.9]}
43. Kh1 {[%clk 0:00:03.2]} 43... Qd2 {[%clk 0:00:07]} 44. Qxd2 {[%clk
0:00:03.2]} 44... Rxd2 {[%clk 0:00:06.5]} 45. Rfe1 {[%clk 0:00:03.6]} 45... Bf6
{[%clk 0:00:06.5]} 46. R5e2 {[%clk 0:00:03.5]} 46... Rd4 {[%clk 0:00:06.8]} 47.
Rc2 {[%clk 0:00:03.1]} 47... Rh4+ {[%clk 0:00:06.9]} 48. Kg1 {[%clk 0:00:03.6]}
48... Bd4+ {[%clk 0:00:07]} 49. Kf1 {[%clk 0:00:04.2]} 49... Rf4+ {[%clk
0:00:07.2]} 50. Ke2 {[%clk 0:00:04.4]} 50... Rf2+ {[%clk 0:00:06.9]} 51. Kd3
{[%clk 0:00:04.9]} 51... Rxc2 {[%clk 0:00:07.5]} 52. Kxc2 {[%clk 0:00:05.4]}
52... Bxg2 {[%clk 0:00:08]} 53. Rd1 {[%clk 0:00:06]} 53... Be5 {[%clk
0:00:07.7]} 54. Rd7 {[%clk 0:00:06.1]} 54... Bc6 {[%clk 0:00:07.2]} 55. Rd8+
{[%clk 0:00:06.1]} 55... Kh7 {[%clk 0:00:07.3]} 56. Kd3 {[%clk 0:00:07]} 56...
h5 {[%clk 0:00:07.3]} 57. Ke2 {[%clk 0:00:05.8]} 57... h4 {[%clk 0:00:07.7]} 58.
Rd3 {[%clk 0:00:06.6]} 58... g5 {[%clk 0:00:07.9]} 59. Rh3 {[%clk 0:00:06.5]}
59... f6 {[%clk 0:00:08.1]} 60. a4 {[%clk 0:00:06.5]} 60... Kg6 {[%clk
0:00:08.5]} 61. b5 {[%clk 0:00:06.5]} 61... axb5 {[%clk 0:00:09.4]} 62. axb5
{[%clk 0:00:07.4]} 62... Bxb5+ {[%clk 0:00:10]} 63. Kf3 {[%clk 0:00:08]} 63...
Bc6+ {[%clk 0:00:10.9]} 64. Kf2 {[%clk 0:00:07.2]} 64... f5 {[%clk 0:00:11.8]}
65. Kg1 {[%clk 0:00:07.5]} 65... Bg3 {[%clk 0:00:10.9]} 66. Kf1 {[%clk
0:00:06.8]} 66... g4 {[%clk 0:00:11.4]} 0-1

[Event "*** SCC Grand Prix: Titled Tuesday Blitz"]
[Site "Chess.com"]
[Date "2020.07.14"]
[Round "3"]
[White "Indianlad"]
[Black "jacky72"]
[Result "1-0"]
[WhiteElo "2947"]
[BlackElo "2656"]
[TimeControl "180+1"]
[EndTime "10:30:11 PDT"]
[Termination "Indianlad won by checkmate"]

1. e4 {[%clk 0:03:00.9]} 1... e5 {[%clk 0:02:59.6]} 2. Nf3 {[%clk 0:03:01.1]}
2... Nc6 {[%clk 0:02:57.6]} 3. Bb5 {[%clk 0:03:01.4]} 3... a6 {[%clk 0:02:57.1]}
4. Ba4 {[%clk 0:03:01.5]} 4... d6 {[%clk 0:02:57.6]} 5. O-O {[%clk 0:02:57.8]}
5... Bd7 {[%clk 0:02:58]} 6. c3 {[%clk 0:02:57.8]} 6... g6 {[%clk 0:02:58.6]} 7.
d4 {[%clk 0:02:58.5]} 7... Bg7 {[%clk 0:02:59.2]} 8. Re1 {[%clk 0:02:57.9]} 8...
Nf6 {[%clk 0:02:59.5]} 9. h3 {[%clk 0:02:58.3]} 9... O-O {[%clk 0:02:59.8]} 10.
a3 {[%clk 0:02:58.6]} 10... Re8 {[%clk 0:02:59.2]} 11. Bc2 {[%clk 0:02:58.6]}
11... Qe7 {[%clk 0:02:58.7]} 12. Nbd2 {[%clk 0:02:58.4]} 12... Qf8 {[%clk
0:02:58.8]} 13. Nf1 {[%clk 0:02:54]} 13... Bh6 {[%clk 0:02:58.8]} 14. Ng3 {[%clk
0:02:53.4]} 14... Rad8 {[%clk 0:02:57.4]} 15. Be3 {[%clk 0:02:43.8]} 15... Bc8
{[%clk 0:02:55.9]} 16. Qd2 {[%clk 0:02:43.8]} 16... Bxe3 {[%clk 0:02:54.7]} 17.
fxe3 {[%clk 0:02:44.7]} 17... Qh6 {[%clk 0:02:49.8]} 18. Qf2 {[%clk 0:02:44.7]}
18... Nh5 {[%clk 0:02:46]} 19. Nxh5 {[%clk 0:02:40.1]} 19... Qxh5 {[%clk
0:02:46.9]} 20. Rf1 {[%clk 0:02:40.8]} 20... Rf8 {[%clk 0:02:46.9]} 21. Qg3
{[%clk 0:02:37.9]} 21... Kh8 {[%clk 0:02:44.2]} 22. Bb3 {[%clk 0:02:37.3]} 22...
f6 {[%clk 0:02:40]} 23. Rf2 {[%clk 0:02:30.8]} 23... Rde8 {[%clk 0:02:39.9]} 24.
Raf1 {[%clk 0:02:30.4]} 24... exd4 {[%clk 0:02:38.1]} 25. exd4 {[%clk
0:02:28.2]} 25... Kg7 {[%clk 0:02:08.5]} 26. Bc2 {[%clk 0:01:54.1]} 26... d5
{[%clk 0:01:56]} 27. exd5 {[%clk 0:01:51.6]} 27... Qxd5 {[%clk 0:01:56.9]} 28.
Qxc7+ {[%clk 0:01:51.8]} 28... Qd7 {[%clk 0:01:53]} 29. Qf4 {[%clk 0:01:49.7]}
29... Ne7 {[%clk 0:01:45.2]} 30. Ne5 {[%clk 0:01:38.6]} 30... Qd5 {[%clk
0:01:26.7]} 31. Nd3 {[%clk 0:01:38.3]} 31... Nf5 {[%clk 0:01:22.6]} 32. Nb4
{[%clk 0:01:32.9]} 32... Qd6 {[%clk 0:01:19.4]} 33. Bxf5 {[%clk 0:01:29.9]}
33... Qxf4 {[%clk 0:01:19]} 34. Rxf4 {[%clk 0:01:30.5]} 34... Bxf5 {[%clk
0:01:19.9]} 35. Nd5 {[%clk 0:01:14.1]} 35... Re2 {[%clk 0:01:15.9]} 36. R4f2
{[%clk 0:01:11.4]} 36... Rxf2 {[%clk 0:00:59.4]} 37. Kxf2 {[%clk 0:01:09.6]}
37... Be4 {[%clk 0:00:55.3]} 38. Nf4 {[%clk 0:01:09.9]} 38... Kf7 {[%clk
0:00:52.1]} 39. c4 {[%clk 0:01:08.8]} 39... f5 {[%clk 0:00:51.1]} 40. b3 {[%clk
0:01:04]} 40... Rd8 {[%clk 0:00:42.9]} 41. d5 {[%clk 0:01:04.1]} 41... Bc2
{[%clk 0:00:43.4]} 42. Ne6 {[%clk 0:01:01.1]} 42... Rc8 {[%clk 0:00:38.5]} 43.
Nd4 {[%clk 0:01:01.6]} 43... Be4 {[%clk 0:00:39.1]} 44. g4 {[%clk 0:01:02]}
44... Kf6 {[%clk 0:00:38.1]} 45. gxf5 {[%clk 0:01:02]} 45... gxf5 {[%clk
0:00:37.5]} 46. Ke3 {[%clk 0:01:00.3]} 46... b5 {[%clk 0:00:37.7]} 47. Rc1
{[%clk 0:00:58.3]} 47... Ke5 {[%clk 0:00:37.7]} 48. Nf3+ {[%clk 0:00:58.6]}
48... Kd6 {[%clk 0:00:32.6]} 49. Nd4 {[%clk 0:00:43.2]} 49... bxc4 {[%clk
0:00:26.7]} 50. Rxc4 {[%clk 0:00:42.8]} 50... Rxc4 {[%clk 0:00:19.2]} 51. bxc4
{[%clk 0:00:43.7]} 51... Kc5 {[%clk 0:00:20.1]} 52. Nf3 {[%clk 0:00:32.8]} 52...
Kxc4 {[%clk 0:00:17.9]} 53. d6 {[%clk 0:00:33.4]} 53... Bc6 {[%clk 0:00:18.2]}
54. Ne5+ {[%clk 0:00:33.8]} 54... Kd5 {[%clk 0:00:18.5]} 55. d7 {[%clk
0:00:34.4]} 55... Bxd7 {[%clk 0:00:17]} 56. Nxd7 {[%clk 0:00:35.3]} 56... Kc4
{[%clk 0:00:17.6]} 57. Kf4 {[%clk 0:00:35.4]} 57... a5 {[%clk 0:00:16.9]} 58.
Kxf5 {[%clk 0:00:31.4]} 58... Kb3 {[%clk 0:00:17.1]} 59. Nb6 {[%clk 0:00:15.2]}
59... Kxa3 {[%clk 0:00:16.7]} 60. Nc4+ {[%clk 0:00:15.9]} 60... Kb4 {[%clk
0:00:16.5]} 61. Nxa5 {[%clk 0:00:16.8]} 61... Kxa5 {[%clk 0:00:17.4]} 62. Kg5
{[%clk 0:00:17.4]} 62... Kb5 {[%clk 0:00:17.4]} 63. Kh6 {[%clk 0:00:18]} 63...
Kc5 {[%clk 0:00:17.6]} 64. Kxh7 {[%clk 0:00:18.7]} 64... Kd6 {[%clk 0:00:18]}
65. h4 {[%clk 0:00:18.3]} 65... Ke6 {[%clk 0:00:12.9]} 66. Kg6 {[%clk
0:00:17.9]} 66... Ke7 {[%clk 0:00:13.3]} 67. Kg7 {[%clk 0:00:18.4]} 67... Ke6
{[%clk 0:00:13.9]} 68. h5 {[%clk 0:00:19.2]} 68... Kf5 {[%clk 0:00:14.8]} 69. h6
{[%clk 0:00:20.1]} 69... Kg5 {[%clk 0:00:14.5]} 70. h7 {[%clk 0:00:21]} 70...
Kf5 {[%clk 0:00:15.4]} 71. h8=Q {[%clk 0:00:21.9]} 71... Ke6 {[%clk 0:00:16.3]}
72. Qf8 {[%clk 0:00:21.9]} 72... Kd7 {[%clk 0:00:16.5]} 73. Kf6 {[%clk
0:00:22.2]} 73... Kc6 {[%clk 0:00:17.4]} 74. Qe7 {[%clk 0:00:22.4]} 74... Kb6
{[%clk 0:00:17.5]} 75. Ke5 {[%clk 0:00:23]} 75... Ka6 {[%clk 0:00:18.4]} 76. Qb4
{[%clk 0:00:23.1]} 76... Ka7 {[%clk 0:00:18.4]} 77. Kd6 {[%clk 0:00:24]} 77...
Ka8 {[%clk 0:00:19.1]} 78. Kc7 {[%clk 0:00:24.7]} 78... Ka7 {[%clk 0:00:20]} 79.
Qa3# {[%clk 0:00:25.6]} 1-0

[Event "*** SCC Grand Prix: Titled Tuesday Blitz"]
[Site "Chess.com"]
[Date "2020.07.14"]
[Round "3"]
[White "NikolaGry"]
[Black "StockholmMissile"]
[Result "1-0"]
[WhiteElo "2641"]
[BlackElo "2460"]
[TimeControl "180+1"]
[EndTime "10:30:13 PDT"]
[Termination "NikolaGry won by resignation"]

1. b3 {[%clk 0:03:00.9]} 1... e5 {[%clk 0:02:59.4]} 2. Bb2 {[%clk 0:03:01.1]}
2... Nc6 {[%clk 0:02:59.6]} 3. c4 {[%clk 0:03:01.7]} 3... Nf6 {[%clk 0:02:59.5]}
4. e3 {[%clk 0:03:01.7]} 4... g6 {[%clk 0:02:55.2]} 5. Nf3 {[%clk 0:03:01]} 5...
d6 {[%clk 0:02:50.1]} 6. d4 {[%clk 0:03:00.8]} 6... exd4 {[%clk 0:02:49.8]} 7.
Nxd4 {[%clk 0:03:00.6]} 7... Bg7 {[%clk 0:02:46.5]} 8. Nxc6 {[%clk 0:02:55]}
8... bxc6 {[%clk 0:02:47.4]} 9. Be2 {[%clk 0:02:54.8]} 9... O-O {[%clk
0:02:47.2]} 10. O-O {[%clk 0:02:54.5]} 10... a5 {[%clk 0:02:44.8]} 11. Bf3
{[%clk 0:02:48.7]} 11... Bd7 {[%clk 0:02:44.1]} 12. Nc3 {[%clk 0:02:47.6]} 12...
Qe7 {[%clk 0:02:41.8]} 13. Qc2 {[%clk 0:02:31.6]} 13... Rfe8 {[%clk 0:02:41]}
14. h3 {[%clk 0:02:29.9]} 14... h6 {[%clk 0:02:29.9]} 15. Rad1 {[%clk
0:02:23.4]} 15... Nh7 {[%clk 0:02:29.4]} 16. Qe2 {[%clk 0:01:44.1]} 16... Ng5
{[%clk 0:02:27.4]} 17. Rd2 {[%clk 0:01:40.8]} 17... Be5 {[%clk 0:02:13.7]} 18.
Rfd1 {[%clk 0:01:34]} 18... Qf6 {[%clk 0:02:01.3]} 19. Na4 {[%clk 0:01:27.2]}
19... Bxb2 {[%clk 0:01:51.9]} 20. Nxb2 {[%clk 0:01:21.4]} 20... Nxf3+ {[%clk
0:01:46.5]} 21. Qxf3 {[%clk 0:01:19.8]} 21... Qxf3 {[%clk 0:01:46.4]} 22. gxf3
{[%clk 0:01:19.8]} 22... Bxh3 {[%clk 0:01:47.3]} 23. c5 {[%clk 0:01:11.5]} 23...
d5 {[%clk 0:01:43.1]} 24. Rd4 {[%clk 0:01:06.6]} 24... Reb8 {[%clk 0:01:36.8]}
25. Rh4 {[%clk 0:00:57.3]} 25... Bf5 {[%clk 0:01:21.7]} 26. Rxh6 {[%clk
0:00:56.8]} 26... Rb5 {[%clk 0:01:09.9]} 27. Na4 {[%clk 0:00:51.7]} 27... Rb4
{[%clk 0:01:04.6]} 28. Kg2 {[%clk 0:00:44.3]} 28... Kg7 {[%clk 0:01:02.9]} 29.
Rhh1 {[%clk 0:00:42.9]} 29... Rd8 {[%clk 0:00:56.5]} 30. Rd2 {[%clk 0:00:38.3]}
30... Re8 {[%clk 0:00:46.6]} 31. Nc3 {[%clk 0:00:35.2]} 31... Bc8 {[%clk
0:00:40.7]} 32. Ne2 {[%clk 0:00:32.8]} 32... Rb5 {[%clk 0:00:39]} 33. Rc1 {[%clk
0:00:32]} 33... Bd7 {[%clk 0:00:38.1]} 34. Nd4 {[%clk 0:00:31.9]} 34... Rb4
{[%clk 0:00:38.1]} 35. Rb2 {[%clk 0:00:29.6]} 35... Rbb8 {[%clk 0:00:32.3]} 36.
a3 {[%clk 0:00:29.2]} 36... Rh8 {[%clk 0:00:30]} 37. Rh1 {[%clk 0:00:26.7]}
37... Rhe8 {[%clk 0:00:24.6]} 38. b4 {[%clk 0:00:25.9]} 38... axb4 {[%clk
0:00:23.8]} 39. Rxb4 {[%clk 0:00:26]} 39... Ra8 {[%clk 0:00:20.9]} 40. Rb7
{[%clk 0:00:26.1]} 40... Rec8 {[%clk 0:00:19.8]} 41. Rb3 {[%clk 0:00:26]} 41...
Ra7 {[%clk 0:00:19.1]} 42. Rhb1 {[%clk 0:00:24.9]} 42... Rca8 {[%clk 0:00:18.3]}
43. Rb7 {[%clk 0:00:24.2]} 43... Kf6 {[%clk 0:00:18]} 44. Rxa7 {[%clk
0:00:24.2]} 44... Rxa7 {[%clk 0:00:18.9]} 45. Rb3 {[%clk 0:00:24.3]} 45... Ke7
{[%clk 0:00:18.4]} 46. Kf1 {[%clk 0:00:23.4]} 46... Ra6 {[%clk 0:00:18.2]} 47.
Ke1 {[%clk 0:00:23.4]} 47... Kd8 {[%clk 0:00:15.9]} 48. Kd2 {[%clk 0:00:23.5]}
48... Kc8 {[%clk 0:00:15.9]} 49. Kc3 {[%clk 0:00:23.7]} 49... Bh3 {[%clk
0:00:14.7]} 50. Kb2 {[%clk 0:00:23.3]} 50... Bf1 {[%clk 0:00:14.2]} 51. Rb4
{[%clk 0:00:23.4]} 51... Bc4 {[%clk 0:00:13.5]} 52. a4 {[%clk 0:00:23.2]} 52...
Ra8 {[%clk 0:00:11.1]} 53. Nc2 {[%clk 0:00:21.6]} 53... Ra5 {[%clk 0:00:10.2]}
54. Na3 {[%clk 0:00:20.1]} 54... Rxc5 {[%clk 0:00:09.9]} 55. Nxc4 {[%clk
0:00:20.2]} 55... dxc4 {[%clk 0:00:10]} 56. Kc3 {[%clk 0:00:20.4]} 56... Rf5
{[%clk 0:00:09.5]} 57. f4 {[%clk 0:00:20.3]} 57... g5 {[%clk 0:00:09.5]} 58.
Rxc4 {[%clk 0:00:20.6]} 58... gxf4 {[%clk 0:00:07.1]} 59. Rxf4 {[%clk
0:00:20.4]} 59... Rxf4 {[%clk 0:00:07.2]} 60. exf4 {[%clk 0:00:19.9]} 60... Kb7
{[%clk 0:00:07.7]} 61. Kc4 {[%clk 0:00:20]} 61... Kb6 {[%clk 0:00:06.3]} 62. f5
{[%clk 0:00:20.1]} 62... c5 {[%clk 0:00:03.3]} 63. f3 {[%clk 0:00:16.9]} 63...
Kc6 {[%clk 0:00:02.6]} 64. a5 {[%clk 0:00:16.8]} 64... Kd6 {[%clk 0:00:02.5]}
65. f6 {[%clk 0:00:16.9]} 65... Kc6 {[%clk 0:00:02.3]} 66. f4 {[%clk 0:00:17.1]}
66... Kb7 {[%clk 0:00:01.9]} 67. Kxc5 {[%clk 0:00:16.8]} 67... Ka6 {[%clk
0:00:02.2]} 68. Kc6 {[%clk 0:00:17]} 1-0

[Event "*** SCC Grand Prix: Titled Tuesday Blitz"]
[Site "Chess.com"]
[Date "2020.07.14"]
[Round "3"]
[White "BillCoe"]
[Black "Kotofeyca"]
[Result "1-0"]
[WhiteElo "2120"]
[BlackElo "2302"]
[TimeControl "180+1"]
[EndTime "10:30:14 PDT"]
[Termination "BillCoe won on time"]

1. e4 {[%clk 0:03:00.8]} 1... c5 {[%clk 0:02:59.6]} 2. Nf3 {[%clk 0:03:00.1]}
2... d6 {[%clk 0:03:00.1]} 3. d4 {[%clk 0:03:00.4]} 3... cxd4 {[%clk 0:03:01]}
4. Nxd4 {[%clk 0:02:59.8]} 4... Nf6 {[%clk 0:03:01.2]} 5. Nc3 {[%clk 0:03:00.6]}
5... a6 {[%clk 0:03:00.8]} 6. h3 {[%clk 0:03:00.9]} 6... b5 {[%clk 0:02:52.8]}
7. g4 {[%clk 0:02:55.8]} 7... Bb7 {[%clk 0:02:31.6]} 8. Bg2 {[%clk 0:02:55.2]}
8... e6 {[%clk 0:02:31.5]} 9. g5 {[%clk 0:02:45.6]} 9... Nfd7 {[%clk 0:02:30.5]}
10. h4 {[%clk 0:02:45.6]} 10... Be7 {[%clk 0:02:28.6]} 11. O-O {[%clk
0:02:37.7]} 11... b4 {[%clk 0:02:17.2]} 12. Nce2 {[%clk 0:02:25.7]} 12... Nc5
{[%clk 0:02:10.3]} 13. Ng3 {[%clk 0:02:24.4]} 13... Nc6 {[%clk 0:02:05.2]} 14.
Be3 {[%clk 0:02:07.4]} 14... Qc7 {[%clk 0:01:54.6]} 15. Qd2 {[%clk 0:02:04]}
15... Ne5 {[%clk 0:01:52.8]} 16. Qxb4 {[%clk 0:01:50.1]} 16... Ng4 {[%clk
0:01:35.1]} 17. Qd2 {[%clk 0:01:48.1]} 17... h6 {[%clk 0:01:22.5]} 18. g6 {[%clk
0:01:45.9]} 18... fxg6 {[%clk 0:01:11.4]} 19. b4 {[%clk 0:01:44.4]} 19... e5
{[%clk 0:01:01.2]} 20. bxc5 {[%clk 0:01:41.4]} 20... exd4 {[%clk 0:01:00.1]} 21.
Bxd4 {[%clk 0:01:36]} 21... O-O {[%clk 0:00:50.1]} 22. Rad1 {[%clk 0:01:08.9]}
22... dxc5 {[%clk 0:00:45.3]} 23. Bc3 {[%clk 0:01:04.6]} 23... Bxh4 {[%clk
0:00:41.6]} 24. Qd7 {[%clk 0:00:48.6]} 24... Rf7 {[%clk 0:00:25.6]} 25. Qxc7
{[%clk 0:00:47.5]} 25... Rxc7 {[%clk 0:00:26.5]} 26. Ba5 {[%clk 0:00:45.6]}
26... Re7 {[%clk 0:00:24.9]} 27. Rd8+ {[%clk 0:00:41.4]} 27... Kh7 {[%clk
0:00:21.7]} 28. Rxa8 {[%clk 0:00:39.5]} 28... Bxa8 {[%clk 0:00:22.6]} 29. Bd8
{[%clk 0:00:38.6]} 29... Ne5 {[%clk 0:00:18.2]} 30. Bxe7 {[%clk 0:00:38]} 30...
Bxe7 {[%clk 0:00:19.1]} 31. Rd1 {[%clk 0:00:34.3]} 31... g5 {[%clk 0:00:19.3]}
32. Nf5 {[%clk 0:00:32.6]} 32... Bf6 {[%clk 0:00:18.3]} 33. Rd6 {[%clk
0:00:31.1]} 33... Bb7 {[%clk 0:00:16.8]} 34. Rb6 {[%clk 0:00:30.5]} 34... Bc8
{[%clk 0:00:15.4]} 35. Rb8 {[%clk 0:00:29.5]} 35... Be6 {[%clk 0:00:15.1]} 36.
Rb6 {[%clk 0:00:22.6]} 36... Bc4 {[%clk 0:00:14.8]} 37. Nd6 {[%clk 0:00:22.4]}
37... Bxa2 {[%clk 0:00:13.6]} 38. Rxa6 {[%clk 0:00:21.8]} 38... Bb1 {[%clk
0:00:13.8]} 39. Ne8 {[%clk 0:00:20.7]} 39... Be7 {[%clk 0:00:12.1]} 40. Re6
{[%clk 0:00:18.4]} 40... Bf6 {[%clk 0:00:11]} 41. Nxf6+ {[%clk 0:00:17.6]} 41...
gxf6 {[%clk 0:00:11.9]} 42. Rxf6 {[%clk 0:00:16.7]} 42... Bxc2 {[%clk 0:00:12]}
43. Re6 {[%clk 0:00:16.1]} 43... Nd3 {[%clk 0:00:10.6]} 44. Rc6 {[%clk
0:00:14.9]} 44... Kg7 {[%clk 0:00:08.6]} 45. Bf1 {[%clk 0:00:14.6]} 45... Ne5
{[%clk 0:00:07.1]} 46. Rxc5 {[%clk 0:00:13.6]} 46... Nf3+ {[%clk 0:00:07.3]} 47.
Kg2 {[%clk 0:00:14.2]} 47... Bxe4 {[%clk 0:00:07.1]} 48. Rc7+ {[%clk 0:00:12.9]}
48... Kf6 {[%clk 0:00:06.9]} 49. Kg3 {[%clk 0:00:11.1]} 49... h5 {[%clk
0:00:06.5]} 50. Be2 {[%clk 0:00:10.1]} 50... h4+ {[%clk 0:00:06.6]} 51. Kg4
{[%clk 0:00:09]} 51... Ne5+ {[%clk 0:00:06.5]} 52. Kh3 {[%clk 0:00:08.7]} 52...
Kf5 {[%clk 0:00:05.2]} 53. Rc5 {[%clk 0:00:07.6]} 53... Kf4 {[%clk 0:00:05.4]}
54. Ra5 {[%clk 0:00:05.1]} 54... Bc2 {[%clk 0:00:02.6]} 55. Rb5 {[%clk
0:00:04.1]} 55... Be4 {[%clk 0:00:02.6]} 56. Rb4 {[%clk 0:00:03.9]} 56... Kf5
{[%clk 0:00:02]} 57. f3 {[%clk 0:00:03.1]} 57... Bc2 {[%clk 0:00:01.5]} 58. Kg2
{[%clk 0:00:02.5]} 1-0